bitfinex/quotes_ETHUSD_20250107
["timestamp","ask_amount","ask_price","bid_price","bid_amount"]
[1736217505655,2.73193,3690.8,3690.7,1.1310976]
[1736217506190,2.72451,3690.7,3690.6,0.55]
[1736217506364,2.997703,3690.7,3690.6,0.55]
[1736217507353,2.70986,3690.3,3690.2,0.55]
[1736217508372,2.70986,3690.3,3689.9,1.95850714]
[1736217509590,2.70986,3690.3,3689.9,0.55]
[1736217510555,0.015,3690.7,3689.9,0.55]
[1736217511056,2.70972,3690.5,3689.9,0.55]
[1736217511286,0.015,3690.7,3689.9,0.55]
[1736217511556,2.70974,3690.4,3689.9,0.55]
[1736217512487,2.70982,3690.3,3689.9,0.55]
[1736217512855,0.7621,3690.6,3689.8,0.55]
[1736217513193,0.7621,3690.6,3689.7,0.5770996]
[1736217513194,2.70982,3690.3,3689.7,0.5770996]
[1736217513362,2.70982,3690.3,3689.7,0.55]
[1736217513764,2.70995,3690.1,3689.7,0.55]
[1736217514354,2.70995,3690.1,3689.5,1.1310976]
[1736217514355,0.7843,3690.0,3689.5,1.1310976]
[1736217514554,2.71032,3689.6,3689.5,1.1310976]
[1736217515173,2.71032,3689.6,3689.5,1.6810976]
[1736217515591,2.71032,3689.6,3689.5,0.55]
[1736217518773,0.015,3689.5,3688.7,2.57987926]
[1736217518980,2.71079,3689.0,3688.8,0.05259469]
[1736217519463,2.71079,3689.0,3688.7,0.55]
[1736217519801,2.71079,3689.0,3688.9,0.55]
[1736217520165,2.71079,3689.0,3688.9,0.60297286]
[1736217521405,2.71079,3689.0,3688.3,0.55]
[1736217521763,2.71079,3689.0,3688.5,0.55]
[1736217521999,2.71079,3689.0,3688.7,0.55]
[1736217522390,2.71079,3689.0,3688.9,0.55]
[1736217522765,2.71079,3689.0,3688.3,0.55]
[1736217522983,2.71079,3689.0,3688.5,0.55]
[1736217523187,2.71079,3689.0,3688.5,0.57710821]
[1736217523361,2.71079,3689.0,3688.7,0.55]
[1736217523564,2.71079,3689.0,3688.9,0.55]
[1736217523800,2.71058,3689.3,3688.9,0.55]
[1736217523998,0.7807,3689.5,3688.5,0.57710684]
[1736217524189,2.71047,3689.4,3689.1,0.55]
[1736217524701,2.71047,3689.4,3689.3,0.55]
[1736217525410,2.71047,3689.4,3688.5,0.57710632]
[1736217525812,2.71047,3689.4,3688.7,0.55]
[1736217526304,2.71055,3689.3,3688.9,0.55]
[1736217526504,0.7807,3689.5,3688.9,0.55]
[1736217526692,2.71066,3689.2,3689.1,0.55]
[1736217527087,2.71066,3689.2,3689.1,0.60309587]
[1736217527293,2.71069,3689.1,3688.3,0.55]
[1736217527681,2.71069,3689.1,3688.5,0.55]
[1736217527994,2.71069,3689.1,3688.7,0.55]
[1736217528390,2.71069,3689.1,3688.9,0.55]
[1736217528766,2.71069,3689.1,3688.3,0.55]
[1736217529097,2.71052,3689.4,3688.5,0.55]
[1736217529310,2.71054,3689.3,3688.5,0.55]
[1736217529471,2.71054,3689.3,3688.7,0.55]
[1736217529807,2.71062,3689.2,3688.9,0.55]
[1736217530004,0.7807,3689.5,3688.9,0.55]
[1736217530182,2.71069,3689.1,3688.3,0.55]
[1736217530584,0.7807,3689.5,3688.5,0.55]
[1736217530783,0.7807,3689.5,3688.7,0.55]
[1736217530980,0.7807,3689.5,3688.9,0.55]
[1736217531296,0.7807,3689.5,3689.1,0.55]
[1736217531606,2.71054,3689.3,3689.2,0.60328455]
[1736217532099,2.71054,3689.3,3689.2,0.55]
[1736217537496,3.50094,3689.3,3689.2,0.55]
[1736217540910,3.50094,3689.3,3687.7,4.95067789]
[1736217540911,2.71106,3688.6,3687.7,1.40283149]
[1736217541109,2.71068,3689.1,3687.7,1.40283149]
[1736217541110,2.71113,3688.5,3687.9,0.185]
[1736217541331,2.71083,3688.9,3688.2,0.0516806]
[1736217541480,0.7904,3688.9,3688.3,0.55]
[1736217541774,2.71104,3688.7,3688.3,0.55]
[1736217542179,2.71104,3688.7,3687.9,0.55]
[1736217542381,2.71104,3688.7,3688.3,0.55]
[1736217543441,2.71104,3688.7,3688.1,0.005]
[1736217543805,2.71104,3688.7,3688.3,0.55]
[1736217544186,2.71104,3688.7,3688.1,0.005]
[1736217544561,2.71104,3688.7,3688.3,0.55]
[1736217544885,2.71104,3688.7,3688.1,0.005]
[1736217545086,2.71108,3688.6,3688.1,0.005]
[1736217545303,2.71108,3688.6,3688.3,0.55]
[1736217545705,2.71108,3688.6,3688.1,0.005]
[1736217546347,2.71108,3688.6,3688.3,0.55]
[1736217546723,2.71108,3688.6,3688.1,0.005]
[1736217547041,2.71108,3688.6,3688.3,0.55]
[1736217547540,2.71108,3688.6,3688.1,0.005]
[1736217547947,2.71108,3688.6,3688.3,0.55]
[1736217548110,3.5013,3688.9,3688.3,0.55]
[1736217548285,2.71096,3688.8,3688.1,0.005]
[1736217548494,2.71096,3688.8,3688.5,0.55]
[1736217548692,2.71076,3689.0,3688.5,0.55]
[1736217548947,2.71076,3689.0,3688.1,0.03210955]
[1736217549246,2.71076,3689.0,3688.2,0.60179271]
[1736217549397,2.71076,3689.0,3688.3,0.02710941]
[1736217549601,2.71076,3689.0,3688.5,0.55]
[1736217549957,0.7904,3689.2,3688.5,0.55]
[1736217550154,0.7904,3689.2,3688.7,0.55]
[1736217550359,0.015,3689.4,3688.7,0.55]
[1736217550565,0.14898492,3689.3,3688.2,0.57710931]
[1736217550849,2.71079,3689.0,3688.4,0.55]
[1736217551254,2.71079,3689.0,3688.6,0.55]
[1736217551620,2.71079,3689.0,3688.8,0.55]
[1736217552250,2.71079,3689.0,3688.2,0.55]
[1736217552454,2.71083,3688.9,3688.2,0.55]
[1736217552604,2.71091,3688.8,3688.2,0.55]
[1736217553306,2.71091,3688.8,3688.4,0.55]
[1736217554362,2.71091,3688.8,3688.3,0.55]
[1736217554703,2.71091,3688.8,3688.2,0.55]
[1736217555224,2.71091,3688.8,3688.2,2.89123347]
[1736217556160,0.7838,3689.0,3688.2,2.89123347]
[1736217556466,3.49456,3689.0,3688.4,0.55]
[1736217557257,3.49456,3689.0,3688.3,0.55]
[1736217557757,3.49456,3689.0,3688.3,0.57710933]
[1736217558160,3.49456,3689.0,3688.5,0.55]
[1736217559232,3.49456,3689.0,3688.7,0.55]
[1736217560428,3.49456,3689.0,3688.5,0.55]
[1736217561672,3.49456,3689.0,3688.7,0.55]
[1736217562683,3.49456,3689.0,3688.6,0.55]
[1736217564000,3.49456,3689.0,3688.7,0.94015416]
[1736217564168,3.49456,3689.0,3688.8,0.55]
[1736217564955,3.49456,3689.0,3688.6,1.6810976]
[1736217566257,3.49456,3689.0,3688.6,0.55]
[1736217566566,3.49456,3689.0,3688.7,0.05172306]
[1736217568601,3.49456,3689.0,3688.9,0.55]
[1736217569091,3.49456,3689.0,3688.9,0.60174696]
[1736217569971,4.00032793,3689.0,3688.9,0.60174696]
[1736217571304,2.71092,3688.8,3688.5,0.55]
[1736217571925,2.71092,3688.8,3688.7,0.55]
[1736217572420,2.71092,3688.8,3688.7,0.60177913]
[1736217574837,2.71092,3688.8,3688.7,1.54235727]
[1736217576047,2.71092,3688.8,3688.7,0.60177913]
[1736217576212,3.22742223,3688.8,3688.7,0.60177913]
[1736217576405,2.71092,3688.8,3688.7,0.60177913]
[1736217578326,2.71092,3688.8,3688.7,1.54244712]
[1736217578603,0.2496,3689.3,3688.7,1.54244712]
[1736217578727,2.96016,3689.3,3688.8,0.02710575]
[1736217578919,2.96016,3689.3,3689.0,0.55]
[1736217579222,0.2496,3689.3,3689.0,0.57710567]
[1736217579552,0.2496,3689.3,3689.2,0.55]
[1736217579914,0.2496,3689.3,3689.2,0.6018259]
[1736217580863,0.2496,3689.3,3689.2,4.08457231]
[1736217581829,0.2496,3689.3,3689.2,2.95347471]
[1736217582462,2.96014,3689.3,3689.2,2.95347471]
[1736217583259,0.2496,3689.3,3689.2,2.95347471]
[1736217587252,0.2496,3689.3,3689.2,1.54249389]
[1736217589280,0.2496,3689.3,3689.2,2.95156708]
[1736217590265,0.2496,3689.3,3689.2,2.40156708]
[1736217591076,0.2496,3689.3,3689.2,2.95156708]
[1736217591358,0.2496,3689.3,3689.2,1.54249389]
[1736217592255,2.96014,3689.3,3689.2,1.54249389]
[1736217592563,3.336584,3689.3,3689.2,0.99249389]
[1736217592943,3.336584,3689.3,3689.2,0.0518259]
[1736217593137,3.336584,3689.3,3689.1,0.55]
[1736217593138,2.71061,3689.2,3689.1,0.55]
[1736217593874,2.71061,3689.2,3688.9,0.55]
[1736217594795,2.71061,3689.2,3688.8,0.55]
[1736217595102,2.71076,3689.0,3688.8,0.55]
[1736217595298,3.46736,3689.0,3688.8,0.55]
[1736217595597,3.46736,3689.0,3688.7,1.1310976]
[1736217595598,0.7566,3689.0,3688.7,1.1310976]
[1736217595797,2.7109,3688.8,3688.7,1.1310976]
[1736217596105,2.7109,3688.8,3688.5,1.1310976]
[1736217596399,2.71105,3688.6,3688.5,1.1310976]
[1736217596695,3.56615,3688.6,3688.5,1.1310976]
[1736217597484,3.56615,3688.6,3688.2,1.6810976]
[1736217597485,3.52457,3688.3,3688.2,1.6810976]
[1736217597969,3.54707,3688.3,3688.2,1.1310976]
[1736217598279,6.54707,3688.3,3688.2,1.1310976]
[1736217598469,5.73384,3688.2,3688.1,0.005]
[1736217598669,6.54714,3688.2,3688.1,0.005]
[1736217606620,6.52464,3688.2,3688.1,0.005]
[1736217623456,7.610223,3688.2,3688.1,0.005]
[1736217623661,1.085583,3688.2,3688.1,1.72001151]
[1736217623869,0.8238,3689.2,3688.2,0.55]
[1736217624067,2.71079,3689.0,3688.7,0.55]
[1736217624393,2.7109,3688.8,3688.7,0.55]
[1736217624593,2.7109,3688.8,3688.5,0.55]
[1736217624894,2.7109,3688.8,3688.5,0.72150115]
[1736217627171,2.7109,3688.8,3688.7,0.55]
[1736217627604,2.7109,3688.8,3688.7,0.59292929]
[1736217629107,2.71076,3689.0,3688.7,0.59292929]
[1736217630307,2.71084,3688.9,3688.7,0.59292929]
[1736217631729,0.2496,3689.3,3688.7,0.59292929]
[1736217632023,0.2496,3689.3,3688.8,2.62159363]
[1736217632399,0.2496,3689.3,3688.8,2.64942732]
[1736217633876,0.2496,3689.3,3688.9,0.55]
[1736217634213,0.2496,3689.3,3689.1,0.55]
[1736217634710,0.2496,3689.3,3689.2,0.61891593]
[1736217639319,2.70997,3690.1,3689.3,0.55]
[1736217639541,2.7101,3689.9,3689.3,0.55]
[1736217639712,2.7101,3689.9,3689.5,0.55]
[1736217640117,2.7101,3689.9,3689.7,0.55]
[1736217640558,2.7101,3689.9,3689.8,0.61754269]
[1736217640758,2.7101,3689.9,3689.8,0.55]
[1736217649168,2.7101,3689.9,3689.8,0.61741766]
[1736217649362,2.7101,3689.9,3689.8,0.55]
[1736217649877,0.015,3690.1,3689.0,0.184]
[1736217650075,0.015,3690.1,3689.2,1.16391183]
[1736217650076,0.8309,3690.0,3689.2,1.16391183]
[1736217650585,0.8309,3690.0,3689.3,0.61740485]
[1736217650760,0.8309,3690.0,3689.3,0.55]
[1736217651162,2.71024,3689.8,3689.3,0.55]
[1736217652778,2.71024,3689.8,3689.5,0.55]
[1736217653188,2.71024,3689.8,3689.6,0.06737374]
[1736217653388,2.71022,3689.8,3689.3,0.55]
[1736217653550,2.71022,3689.8,3689.7,0.06736337]
[1736217654088,2.71022,3689.8,3689.3,0.55]
[1736217654653,2.71022,3689.8,3689.5,0.55]
[1736217655076,2.71022,3689.8,3689.6,0.06737374]
[1736217655274,2.71022,3689.8,3689.5,0.55]
[1736217655593,2.71022,3689.8,3689.3,0.55]
[1736217655773,2.71022,3689.8,3689.6,0.06737374]
[1736217655979,2.71022,3689.8,3689.3,0.55]
[1736217656178,2.71022,3689.8,3689.7,0.06736337]
[1736217656379,2.71022,3689.8,3689.3,0.55]
[1736217656887,2.71022,3689.8,3689.4,0.06739448]
[1736217657058,2.71022,3689.8,3689.5,0.55]
[1736217657390,2.71022,3689.8,3689.6,0.06737374]
[1736217657555,2.71022,3689.8,3689.3,0.55]
[1736217657756,2.71022,3689.8,3689.7,0.06736337]
[1736217657956,2.71022,3689.8,3689.3,0.55]
[1736217658195,2.71022,3689.8,3689.7,0.06736337]
[1736217658797,2.71022,3689.8,3689.3,0.55]
[1736217659309,0.8309,3690.0,3689.5,0.55]
[1736217659461,2.70989,3690.2,3689.5,0.55]
[1736217659789,2.70989,3690.2,3689.7,0.55]
[1736217659790,3.48619,3690.2,3689.7,0.55]
[1736217660006,0.7763,3690.2,3689.7,0.55]
[1736217660173,2.70996,3690.1,3689.8,0.067353]
[1736217660352,2.70996,3690.1,3689.5,0.55]
[1736217660553,2.70996,3690.1,3689.9,0.06730387]
[1736217660783,3.358586,3690.1,3689.5,0.55]
[1736217661090,2.70996,3690.1,3689.5,0.55]
[1736217661594,2.70996,3690.1,3689.7,0.55]
[1736217661973,2.70996,3690.1,3689.8,0.06731424]
[1736217662170,2.70996,3690.1,3689.5,0.55]
[1736217662370,2.70996,3690.1,3689.9,0.06730387]
[1736217662570,3.358586,3690.1,3689.5,0.55]
[1736217662797,2.70996,3690.1,3690.0,0.0672935]
[1736217662956,2.70996,3690.1,3689.5,0.55]
[1736217663159,2.70996,3690.1,3690.0,0.0672935]
[1736217663355,2.70996,3690.1,3689.5,0.55]
[1736217663597,2.70996,3690.1,3690.0,0.0672935]
[1736217663910,3.358586,3690.1,3689.5,0.55]
[1736217664099,2.70996,3690.1,3690.0,0.0672935]
[1736217664463,2.70996,3690.1,3689.5,0.55]
[1736217664680,2.70996,3690.1,3689.6,0.06733497]
[1736217664880,2.70996,3690.1,3689.7,0.55]
[1736217665492,2.70996,3690.1,3689.5,0.55]
[1736217665687,2.70996,3690.1,3689.7,0.55]
[1736217665997,2.70996,3690.1,3689.8,0.06731424]
[1736217666205,2.70996,3690.1,3689.5,0.55]
[1736217666508,3.358586,3690.1,3689.5,0.55]
[1736217666804,3.358586,3690.1,3689.7,0.55]
[1736217667302,3.358586,3690.1,3689.8,0.06731424]
[1736217667502,3.358586,3690.1,3689.4,1.16391183]
[1736217667708,2.70996,3690.1,3689.9,0.06730387]
[1736217668032,2.70996,3690.1,3689.7,0.55]
[1736217668370,2.70996,3690.1,3689.8,0.06731424]
[1736217668684,2.70996,3690.1,3689.7,0.55]
[1736217669010,2.70996,3690.1,3689.8,0.06731424]
[1736217669516,2.70996,3690.1,3689.9,0.06730387]
[1736217669816,2.70996,3690.1,3689.7,0.55]
[1736217670201,2.70996,3690.1,3689.8,0.06731424]
[1736217670406,2.70996,3690.1,3689.7,0.55]
[1736217670712,2.70996,3690.1,3689.8,0.06731424]
[1736217670917,2.70996,3690.1,3689.7,0.55]
[1736217671081,2.70996,3690.1,3689.9,0.06730387]
[1736217671282,2.70996,3690.1,3689.7,0.55]
[1736217671582,2.70996,3690.1,3689.8,0.06731424]
[1736217671885,2.70996,3690.1,3689.9,0.06730387]
[1736217672090,2.70996,3690.1,3689.7,0.55]
[1736217672409,2.70996,3690.1,3689.8,0.06731424]
[1736217672611,2.70996,3690.1,3689.7,0.55]
[1736217672780,2.70996,3690.1,3689.9,0.06730387]
[1736217672980,3.358586,3690.1,3689.7,0.55]
[1736217673181,3.358586,3690.1,3690.0,0.0672935]
[1736217673428,3.358586,3690.1,3689.7,0.55]
[1736217673593,2.70996,3690.1,3689.7,0.55]
[1736217673777,2.70996,3690.1,3689.8,0.06731424]
[1736217673978,2.70996,3690.1,3689.7,0.55]
[1736217674206,2.70996,3690.1,3689.9,0.06730387]
[1736217674404,2.70996,3690.1,3689.7,0.55]
[1736217674594,2.70996,3690.1,3690.0,0.06698096]
[1736217674794,2.70996,3690.1,3689.7,0.55]
[1736217674795,3.358586,3690.1,3689.7,0.55]
[1736217674994,2.70996,3690.1,3690.0,0.06698096]
[1736217675230,2.70996,3690.1,3689.7,0.55]
[1736217675393,2.70996,3690.1,3690.0,0.06698096]
[1736217675593,2.70996,3690.1,3689.7,0.55]
[1736217675794,2.70996,3690.1,3690.0,0.06691629]
[1736217675992,3.358586,3690.1,3689.7,0.55]
[1736217676193,2.70996,3690.1,3690.0,0.06691629]
[1736217676396,2.70996,3690.1,3689.7,0.55]
[1736217676703,2.70995,3690.1,3689.7,0.55]
[1736217676905,0.7763,3690.2,3689.5,0.55]
[1736217677230,2.71003,3690.0,3689.5,0.55]
[1736217677432,2.71003,3690.0,3689.7,0.55]
[1736217677785,2.71003,3690.0,3689.8,0.06693703]
[1736217678022,2.71003,3690.0,3689.7,0.55]
[1736217678238,2.71003,3690.0,3689.9,0.06692666]
[1736217678440,2.71003,3690.0,3689.8,0.06693703]
[1736217678606,2.71003,3690.0,3689.9,0.06692666]
[1736217678800,2.71003,3690.0,3689.8,0.94016711]
[1736217679017,2.71003,3690.0,3689.9,0.06692666]
[1736217680833,2.71003,3690.0,3689.7,0.55]
[1736217681033,2.71003,3690.0,3689.9,0.06692666]
[1736217681233,2.71003,3690.0,3689.8,0.06693703]
[1736217681439,2.71003,3690.0,3689.9,0.06692666]
[1736217681821,0.7763,3690.2,3689.7,0.55]
[1736217681994,3.48619,3690.2,3689.9,1.00789728]
[1736217682196,3.48619,3690.2,3689.9,0.94097062]
[1736217682529,3.48619,3690.2,3690.0,0.06691629]
[1736217682733,2.70989,3690.2,3690.0,0.06691629]
[1736217683330,2.70995,3690.1,3689.7,1.6810976]
[1736217685236,2.70995,3690.1,3689.9,0.55]
[1736217685935,2.70995,3690.1,3689.8,0.55]
[1736217686318,2.70995,3690.1,3689.9,0.06687926]
[1736217686726,2.70995,3690.1,3689.9,2.41968399]
[1736217687566,2.70995,3690.1,3689.9,0.06687926]
[1736217692566,2.71002,3690.0,3689.9,0.06687926]
[1736217693530,2.71002,3690.0,3689.9,2.96953536]
[1736217694958,2.71002,3690.0,3689.9,1.5579417]
[1736217697649,2.70988,3690.2,3689.9,1.5579417]
[1736217697850,2.70988,3690.2,3689.9,2.96962305]
[1736217698470,0.8127,3690.4,3689.9,2.96962305]
[1736217698634,2.70998,3690.1,3689.9,2.96962305]
[1736217698836,2.70998,3690.1,3690.0,2.35274379]
[1736217699140,2.70998,3690.1,3690.0,2.4173894]
[1736217699836,2.70998,3690.1,3690.0,1.00570805]
[1736217701839,2.70981,3690.3,3690.0,1.00570805]
[1736217702072,0.8127,3690.4,3690.0,1.00570805]
[1736217702278,2.70988,3690.2,3690.0,2.41728647]
[1736217703046,2.70988,3690.2,3690.0,0.06464561]
[1736217704842,2.70995,3690.1,3690.0,0.06464561]
[1736217705042,3.46095,3690.1,3690.0,0.06464561]
[1736217705282,2.71017,3689.8,3689.7,1.6810976]
[1736217706172,2.71017,3689.8,3689.7,1.49113891]
[1736217707182,3.46917,3689.8,3689.7,0.94113891]
[1736217707487,4.087082,3689.8,3689.7,0.94113891]
[1736217708488,1.376912,3689.8,3689.5,0.55]
[1736217708645,2.71038,3689.6,3689.5,0.55]
[1736217709585,2.71038,3689.6,3689.5,1.49092487]
[1736217715193,2.436759,3689.6,3689.5,1.49092487]
[1736217716465,2.436759,3689.6,3689.5,1.55574729]
[1736217716765,2.436759,3689.6,3689.5,0.61482242]
[1736217731435,2.71015,3689.9,3689.6,0.55]
[1736217732121,2.71015,3689.9,3689.3,1.71391183]
[1736217732319,2.71015,3689.9,3689.7,2.4147678]
[1736217732512,2.71017,3689.8,3689.7,2.90003937]
[1736217733433,2.71017,3689.8,3689.7,0.55]
[1736217733797,2.71039,3689.5,3689.4,1.1310976]
[1736217734112,3.54122,3689.6,3689.5,0.55]
[1736217734510,2.71039,3689.5,3689.4,0.55]
[1736217735023,2.71039,3689.5,3689.2,0.55]
[1736217736034,2.71039,3689.5,3689.4,0.55]
[1736217737255,2.71039,3689.5,3689.2,0.55]
[1736217739295,2.71039,3689.5,3689.4,0.55]
[1736217740412,2.71047,3689.4,3689.2,0.55]
[1736217741234,0.0075,3689.4,3689.1,1.1310976]
[1736217741434,7.66412183,3689.2,3689.1,1.1310976]
[1736217742139,7.66412183,3689.2,3689.1,7.6e-06]
[1736217742602,2.71114,3688.5,3688.1,2.86592262]
[1736217743426,2.71114,3688.5,3688.2,0.55]
[1736217743945,2.71114,3688.5,3688.2,2.90008452]
[1736217745239,2.71114,3688.5,3688.3,0.94003381]
[1736217746436,2.71114,3688.5,3688.4,0.06019726]
[1736217746638,2.71114,3688.5,3688.2,0.55]
[1736217746802,2.71114,3688.5,3688.4,0.06019726]
[1736217747002,2.71114,3688.5,3688.2,0.55]
[1736217747205,2.71114,3688.5,3688.4,0.06019726]
[1736217747406,2.71114,3688.5,3688.2,0.55]
[1736217747627,2.71114,3688.5,3688.4,0.06019726]
[1736217747908,2.71114,3688.5,3688.2,0.55]
[1736217748143,2.71114,3688.5,3688.4,0.06019726]
[1736217748305,2.71114,3688.5,3688.3,0.06020763]
[1736217748507,2.71114,3688.5,3688.4,0.06019726]
[1736217748836,2.71114,3688.5,3688.2,0.55]
[1736217749140,2.71114,3688.5,3688.4,0.06019726]
[1736217749317,2.71114,3688.5,3688.3,0.06020763]
[1736217749517,2.71114,3688.5,3688.4,0.06019726]
[1736217749841,2.71114,3688.5,3688.2,0.55]
[1736217750047,2.71114,3688.5,3688.4,0.06019726]
[1736217750340,2.71114,3688.5,3688.2,0.55]
[1736217750516,2.71114,3688.5,3688.4,0.06019726]
[1736217750715,2.7112,3688.4,3688.3,0.06020763]
[1736217750919,5.71134,3688.2,3688.1,0.005]
[1736217751132,5.72634,3688.2,3688.1,0.005]
[1736217751321,6.80163758,3688.2,3688.1,0.005]
[1736217752272,2.71134,3688.2,3688.1,0.005]
[1736217759175,2.72634,3688.2,3688.1,0.005]
[1736217759381,3.49754,3688.2,3688.1,0.005]
[1736217762589,6.49754,3688.2,3688.1,0.005]
[1736217775523,3.48254,3688.2,3688.1,0.005]
[1736217775716,2.71134,3688.2,3688.1,0.005]
[1736217775906,2.71134,3688.2,3688.1,0.06668143]
[1736217776111,2.71134,3688.2,3688.1,0.005]
[1736217780217,2.71134,3688.2,3688.1,0.0666383]
[1736217783556,3.329627,3688.2,3688.1,0.0666383]
[1736217787265,2.71134,3688.2,3688.1,0.0666383]
[1736217789063,2.71134,3688.2,3688.1,0.6166383]
[1736217789332,1.69908047,3688.9,3688.2,0.55]
[1736217789546,1.69908047,3689.1,3688.9,0.55]
[1736217789890,1.69908047,3689.1,3689.0,0.06158375]
[1736217790203,1.69908047,3689.1,3688.9,0.55]
[1736217790404,4.40976047,3689.1,3688.9,0.55]
[1736217790601,2.71068,3689.1,3688.9,0.55]
[1736217791019,2.71068,3689.1,3689.0,0.06158375]
[1736217791489,6.893158,3689.1,3689.0,0.06158375]
[1736217791793,2.71098,3688.7,3688.6,1.13548478]
[1736217792413,0.0225,3689.0,3688.2,2.48339661]
[1736217792612,2.71105,3688.6,3688.2,2.48339661]
[1736217793226,3.0,3688.9,3688.3,2.34949813]
[1736217793392,2.71112,3688.6,3688.3,2.34949813]
[1736217794329,2.71112,3688.6,3688.4,0.93979925]
[1736217794925,2.71112,3688.6,3688.2,2.48339661]
[1736217795928,2.71112,3688.6,3688.3,2.34956005]
[1736217796128,2.71113,3688.5,3688.3,2.34956005]
[1736217797038,2.71113,3688.5,3688.4,0.93982402]
[1736217797904,2.71113,3688.5,3688.2,1.34791183]
[1736217799050,2.71113,3688.5,3688.3,2.34931583]
[1736217800231,2.71094,3688.8,3688.4,2.65363816]
[1736217801645,2.71094,3688.8,3688.6,0.55]
[1736217802354,2.71094,3688.8,3688.5,0.55]
[1736217804956,2.71098,3688.7,3688.5,0.55]
[1736217806440,2.71098,3688.7,3688.6,0.06110134]
[1736217808029,2.71098,3688.7,3688.5,0.55]
[1736217808230,2.71098,3688.7,3688.6,0.06088137]
[1736217810448,2.71084,3688.9,3688.6,1.2247932]
[1736217810648,2.71084,3688.9,3688.8,1.16391183]
[1736217810862,2.71084,3688.9,3688.8,1.22477245]
[1736217811059,2.71084,3688.9,3688.8,0.06086062]
[1736217811367,2.71098,3688.7,3688.6,1.71391183]
[1736217814240,2.71083,3688.9,3688.6,1.71391183]
[1736217814575,2.71083,3688.9,3688.6,2.65290408]
[1736217815395,2.71083,3688.9,3688.6,1.71391183]
[1736217818368,2.71067,3689.2,3688.6,1.71391183]
[1736217818568,2.71092,3688.8,3688.6,1.71391183]
[1736217821409,2.71092,3688.8,3688.7,0.06080203]
[1736217828199,2.71092,3688.8,3688.7,0.61080203]
[1736217829780,2.72592,3688.8,3688.7,0.06080203]
[1736217829991,3.52152,3688.8,3688.7,0.06080203]
[1736217830306,2.71112,3688.5,3688.4,1.13548478]
[1736217830468,3.49922,3688.5,3688.4,1.13548478]
[1736217830873,3.50672,3688.5,3688.4,1.13548478]
[1736217831264,3.50672,3688.5,3688.1,0.555]
[1736217831464,2.71134,3688.2,3688.1,0.555]
[1736217832696,2.71134,3688.2,3688.1,0.005]
[1736217834106,3.47634,3688.2,3688.1,0.005]
[1736217836306,3.47634,3688.2,3688.1,0.0660713]
[1736217842017,3.47634,3688.2,3688.1,0.6160713]
[1736217852416,4.1534082,3688.2,3688.1,0.0660713]
[1736217853839,4.1534082,3688.2,3688.1,0.005]
[1736217854131,4.1534082,3688.2,3688.1,0.06635593]
[1736217855313,4.1534082,3688.2,3688.1,0.005]
[1736217859542,2.71134,3688.2,3688.1,0.005]
[1736217861245,2.71134,3688.2,3688.1,0.06612535]
[1736217861429,2.71134,3688.2,3688.1,0.005]
[1736217861626,2.71134,3688.2,3688.1,0.61612535]
[1736217861828,2.71134,3688.2,3688.1,0.555]
[1736217862032,2.71134,3688.2,3688.1,0.61612535]
[1736217864215,3.057974,3688.2,3688.1,0.61612535]
[1736217866044,3.849874,3688.2,3688.1,0.06612535]
[1736217868140,6.849874,3688.2,3688.1,0.06612535]
[1736217868341,6.849874,3688.2,3688.1,0.005]
[1736217876569,6.849874,3688.2,3688.1,0.06613829]
[1736217877764,6.48074,3688.2,3688.1,0.06613829]
[1736217877965,5.71134,3688.2,3688.1,0.06613829]
[1736217880855,0.7913,3689.2,3688.1,0.06613829]
[1736217881062,3.50192,3689.2,3688.6,1.16391183]
[1736217881369,5.54256917,3689.1,3688.6,1.16391183]
[1736217881670,2.83187917,3689.1,3688.8,1.71391183]
[1736217881967,2.83187917,3689.1,3688.8,1.77486537]
[1736217882167,2.71053,3689.4,3688.8,1.77486537]
[1736217882463,2.71053,3689.4,3689.0,1.16391183]
[1736217882670,2.71061,3689.3,3689.0,1.16391183]
[1736217882877,2.71061,3689.3,3689.1,0.06092242]
[1736217883374,2.71061,3689.2,3689.1,0.06092242]
[1736217883670,2.71061,3689.2,3688.9,3.48747103]
[1736217883869,2.71061,3689.2,3689.1,0.06050411]
[1736217884166,0.7913,3689.3,3688.9,3.48747103]
[1736217884366,2.71076,3689.0,3688.7,1.13548478]
[1736217884837,2.71087,3688.9,3688.7,1.13548478]
[1736217885348,2.71087,3688.9,3688.6,1.16391183]
[1736217888376,2.71102,3688.7,3688.3,0.55]
[1736217888538,2.71102,3688.7,3688.3,1.71391183]
[1736217888734,2.71102,3688.7,3688.5,1.16391183]
[1736217896480,2.71102,3688.7,3688.6,0.06035754]
[1736217901148,2.71102,3688.7,3688.3,1.71391183]
[1736217901578,2.71102,3688.7,3688.4,0.06037829]
[1736217906373,2.71102,3688.7,3688.5,1.16391183]
[1736217906690,2.71102,3688.7,3688.5,1.22431854]
[1736217906989,2.71078,3689.0,3688.6,0.55]
[1736217907194,2.71078,3689.0,3688.8,1.16391183]
[1736217907690,2.71078,3689.0,3688.9,0.06036522]
[1736217908185,2.71078,3689.0,3688.6,1.71391183]
[1736217908690,2.71078,3689.0,3688.7,0.06038597]
[1736217913492,2.7334,3688.8,3688.7,0.06038597]
[1736217913893,2.71112,3688.5,3688.4,1.4072391]
[1736217914074,2.71112,3688.5,3688.3,1.4072391]
[1736217915417,2.71112,3688.5,3688.2,1.16391183]
[1736217915766,2.7112,3688.4,3688.1,0.005]